Cogmind - Beta 16 @@@ ROGUE MODE // 2026.01.01 @ 00:28:15 Player: exo Result: Self-destructed Performance ------------- Evolutions (1) 500 Regions Visited (3) 600 Robots Destroyed (11) 55 Value Destroyed (238) 238 Prototype IDs (0) 0 Alien Tech Used (0) 0 Bonus (0) 0 TOTAL SCORE: 1393 Bonus ------- None Cogmind --------- Core Integrity 339/400 Matter 4/300 Energy 35/100 System Corruption 3% Temperature Cool (0) Movement Treading (240) Ox1 Location -9/Mines Parts ------- > --- POWER (1) -------- (None) > --- PROPULSION (2) --- Improved Treads Improved Treads > --- UTILITY (4) ------ Improved Heat Sink Huge Storage Unit Utility Shielding Hacking Suite > --- WEAPON (2) ------- Light EM Pulse Cannon Heavy Assault Rifle > --- INVENTORY (25) --- Ion Engine Ion Engine Improved Ion Engine Light Treads Improved Treads Improved Treads Compact Wheel Compact Wheel Compact Wheel Small Storage Unit Structural Scanner Utility Shielding Utility Shielding Utility Shielding Heavy EM Pulse Gun Beam Rifle Light EM Pulse Cannon Light EM Pulse Cannon Heavy Assault Rifle Improved Light Cannon Plasma Cutter Plasma Cutter Peak State ------------ > --- POWER ------------ Light Nuclear Core > --- PROPULSION ------- Improved Treads Improved Treads > --- UTILITY ---------- Improved Heat Sink Huge Storage Unit Structural Scanner Hacking Suite > --- WEAPON ----------- Improved Light Cannon Improved Light Cannon > --- INVENTORY -------- Ion Engine Ion Engine Improved Ion Engine Light Treads Improved Treads Improved Treads Compact Wheel Compact Wheel Compact Wheel Small Storage Unit Heavy EM Pulse Gun Beam Rifle Light EM Pulse Cannon Heavy Assault Rifle Heavy Assault Rifle Improved Light Cannon Grenade Launcher Plasma Cutter Plasma Cutter [Rating: 22] Favorites ----------- Power Light Nuclear Core Engine Ion Engine Power Core Light Nuclear Core Propulsion Improved Treads Treads Improved Treads Utility Improved Heat Sink Device Improved Heat Sink Storage Huge Storage Unit Hackware Hacking Suite Protection Utility Shielding Weapon Light EM Pulse Cannon Energy Gun Beam Rifle Energy Cannon Light EM Pulse Cannon Ballistic Gun Heavy Assault Rifle Ballistic Cannon Improved Light Cannon Launcher Grenade Launcher Build | -11 -10 -9 -9 ------- Run | Yrd Mat Mat Min Slots Evolved 2 | . . 2 . Power . | . . . . Propulsion . | . . . . Utility 2 | . . 2 . Weapon . | . . . . Parts Attached 26 | 6 7 9 4 Power 2 | 1 1 . . Engine 1 | 1 . . . Core 1 | . 1 . . Reactor . | . . . . Propulsion 6 | 2 3 . 1 Treads 6 | 2 3 . 1 Leg . | . . . . Wheel . | . . . . Hover . | . . . . Flight . | . . . . Utility 6 | 1 1 3 1 Device 2 | . 1 1 . Storage 2 | 1 . 1 . Processor . | . . . . Hackware 1 | . . 1 . Protection 1 | . . . 1 Artifact . | . . . . Weapon 12 | 2 2 6 2 Energy Gun 4 | 1 1 2 . Energy Cannon 3 | . . 2 1 Ballistic Gun 2 | 1 . . 1 Ballistic Cannon 2 | . . 2 . Launcher 1 | . 1 . . Special Weapon . | . . . . Impact Weapon . | . . . . Slashing Weapon . | . . . . Piercing Weapon . | . . . . Special Melee Weapon . | . . . . Unidentified Prototypes . | . . . . Parts Lost 4 | . 2 . 2 Power 2 | . 1 . 1 Propulsion . | . . . . Utility . | . . . . Weapon 2 | . 1 . 1 Highest Loss Streak 2 | . 2 . 2 To Critical Strikes . | . . . . Average Backups 16 | 1 6 16 22 Power 2 | 1 1 2 3 Propulsion 4 | . 3 5 6 Utility 2 | . . 1 5 Weapon 5 | . 2 5 6 Tool/Special . | . . . . Unused Backups 13 | . . . 13 Power 3 | . . . 3 Propulsion 3 | . . . 3 Utility 3 | . . . 3 Weapon 2 | . . . 2 Tool/Special 2 | . . . 2 Average Slot Usage (%) 96 | . 86 98 99 Engine 1 | . 10 . . Core 9 | . 2 11 10 Treads 22 | . 28 22 22 Device 18 | . 2 20 21 Storage 11 | . 14 11 11 Hackware 9 | . . 11 11 Energy Gun 4 | . 14 4 . Energy Cannon 7 | . . 4 12 Ballistic Gun 3 | . 11 . 4 Ballistic Cannon 5 | . . 12 . Launcher 2 | . 2 . 4 Peak Build Rating 22 | 6 15 22 22 Average Rating 18 | 3 8 20 21 On Entrance 10 | . 6 15 22 Avg Prop Armor Cover (%) . | . . . . Naked Turns . | . . . . Heaviest Build 95 | 14 17 95 95 Greatest Support 46 | 40 46 46 46 Greatest Overweight (x) 2 | . . 2 2 Average Overweight (x) 1 | . . 1 1 Largest Inventory Capacity 25 | 8 8 25 25 Average Capacity 20 | 6 8 21 25 Most Carried 25 | 5 8 25 23 Average Carried 16 | 2 6 16 22 Final Capacity 25 | 8 8 25 25 Final Carried 23 | 1 7 23 22 Class Distribution -------------------- 100% | Mutant Dominant Class ---------------- Mutant | -10/Materials Mutant | -9/Materials Mutant | -9/Mines Resources | -11 -10 -9 -9 ----------- Run | Yrd Mat Mat Min Matter Collected 355 | 149 149 . 57 Remotely . | . . . . Salvage Created 335 | . 196 . 139 Parts 24 | . 19 . 5 Haulers Intercepted . | . . . . Recyclers Shooed . | . . . . Parts Field Recycled . | . . . . Retrieved Matter . | . . . . Parts Self-Destructed . | . . . . Prevented . | . . . . Parts Restored . | . . . . Kills | -11 -10 -9 -9 ------- Run | Yrd Mat Mat Min Combat Hostiles Destroyed 19 | . 4 . 15 Guns 5 | . 3 . 2 Cannons 3 | . . . 3 AOE 11 | . 1 . 10 Classes Destroyed 6 | . 3 . 3 Tunneler 1 | . . . 1 Operator 1 | . 1 . . Watcher 1 | . 1 . . Swarmer 4 | . . . 4 Grunt 4 | . 4 . . Assembled 11 | . . . 11 Best Kill Streak 12 | . 3 . 12 Combat Bots Only 11 | . 2 . 11 Max Kills in Single Turn 5 | . 1 . 5 Gunslinging . | . . . . Exploded 4 | . 1 . 4 Melee . | . . . . Uniques/NPCs Destroyed . | . . . . Combat | -11 -10 -9 -9 -------- Run | Yrd Mat Mat Min Hostile Shots Fired 116 | . 54 . 62 Missed 31 | . 15 . 16 Hits 85 | . 39 . 46 Melee 3 | . . . 3 Projectile 82 | . 39 . 43 Critical Strikes 2 | . 1 . 1 Part Disruptions 1 | . . . 1 Damage Taken 1022 | . 487 15 520 Core 119 | . 58 . 61 Absorbed by Shields . | . . . . Core Remaining (%) 88 | 100 76 . . Volleys Fired 42 | . 18 5 19 Largest 2 | . 2 2 2 Hottest 112 | . 86 112 112 Shots Fired 78 | . 35 10 33 Gun 46 | . 34 . 12 Cannon 23 | . . 10 13 Launcher 9 | . 1 . 8 Special . | . . . . Kinetic 35 | . 17 6 12 Thermal 17 | . 17 . . Explosive 9 | . 1 . 8 Electromagnetic 17 | . . 4 13 Robot Hit Streak 6 | . 6 1 4 Robot Miss Streak 7 | . 4 6 7 Penetration Max . | . . . . Secondary Targets 2 | . 2 . . Max Gunslinging Chain 1 | . 1 . . Shots Hit Robots 44 | . 24 1 19 Core Hits 39 | . 10 . 29 Critical Kills 1 | . 1 . . Critical Parts Destroyed . | . . . . Critical Strikes 1 | . 1 . . Destroy 1 | . 1 . . Melee Attacks . | . . . . Impact . | . . . . Slashing . | . . . . Piercing . | . . . . Sneak Attacks . | . . . . Combat Hostiles . | . . . . Follow-up Attacks . | . . . . Damage Inflicted 1250 | . 368 21 861 Guns 428 | . 311 . 117 Cannons 138 | . . 21 117 Explosions 684 | . 57 . 627 Melee . | . . . . Ramming . | . . . . Kinetic 275 | . 137 21 117 Thermal 174 | . 174 . . Explosive 684 | . 57 . 627 Electromagnetic 117 | . . . 117 Impact . | . . . . Slashing . | . . . . Piercing . | . . . . Highest Corruption 3 | . . . 3 Average Corruption 3 | . . . 3 Corruption Purged . | . . . . Corruption Blocked . | . . . . Overload Shots . | . . . . Overflow Damage 4 | . . . 4 Projectiles . | . . . . Explosions 4 | . . . 4 Melee . | . . . . Knockbacks 1 | . . 1 . Impact . | . . . . Kinetic 1 | . . 1 . Secondary . | . . . . Self-Inflicted Damage 22 | . 16 . 6 Shots 2 | . 1 . 1 Rammed . | . . . . Targets Rammed . | . . . . Kicked . | . . . . Crushed . | . . . . Highest Temperature 135 | . 135 6 12 Average Temperature 52 | . 70 4 5 Received Heat Transfer 339 | . 279 . 60 Siege Activations . | . . . . Martial Activations . | . . . . Shielding Activations . | . . . . Robots Disrupted . | . . . . Combat Hostiles . | . . . . Robots Corrupted . | . . . . Combat Hostiles . | . . . . Parts Fried . | . . . . Impact Corruptions . | . . . . Robots Melted . | . . . . Combat Hostiles . | . . . . Parts Melted . | . . . . Heat Transferred 481 | . 481 . . Parts Sabotaged . | . . . . Parts Stolen . | . . . . Parts Stripped . | . . . . Power Chain Reactions . | . . . . Alert | -11 -10 -9 -9 ------- Run | Yrd Mat Mat Min Maximum Alert Level . | . . . . Low Security (%) 100 | 100 100 100 100 Level 1 . | . . . . Level 2 . | . . . . Level 3 . | . . . . Level 4 . | . . . . Level 5 . | . . . . High Security . | . . . . Max Security . | . . . . Peak Influence 107 | . 47 11 107 Initial 11 | . . 11 . Average 11 | . 15 . 23 Influence Increases 270 | . 114 . 156 Destroy 0b10 Robot/C 160 | . 80 . 80 Destroy 0b10 Robot/NC 15 | . 10 . 5 Destroy Leader 32 | . 22 . 10 Disable Machine 15 | . . . 15 Destroy Structure 33 | . 2 . 31 Lose Combat Pursuer 15 | . . . 15 Influence Decreases 270 | . 87 27 156 Entered New Map 16 | . . 16 . Time Decay 214 | . 67 11 136 Lost Part 40 | . 20 . 20 Squads Dispatched 2 | . 1 1 . Investigation . | . . . . Extermination . | . . . . Reinforcement 2 | . 1 1 . Assault . | . . . . Garrison . | . . . . Intercept . | . . . . Searches Triggered . | . . . . Construction Impeded . | . . . . Haulers Reinforced . | . . . . Active Scanning Responses . | . . . . Cargo Convoy Interrupts . | . . . . Stealth | -11 -10 -9 -9 --------- Run | Yrd Mat Mat Min Distress Signals . | . . . . Communications Jammed . | . . . . Distress Signals . | . . . . Times Spotted 35 | . 6 4 25 Peak Tracking Total 18 | . 3 3 18 Tactical Retreats 1 | . . . 1 Traps | -11 -10 -9 -9 ------- Run | Yrd Mat Mat Min Traps Triggered 1 | . . 1 . Indirectly . | . . . . Trap Hack Attempts . | . . . . Triggered . | . . . . Disarmed . | . . . . Reprogrammed . | . . . . Reused . | . . . . Traps Extracted . | . . . . Installed . | . . . . Triggered . | . . . . Machines | -11 -10 -9 -9 ---------- Run | Yrd Mat Mat Min Machines Disabled 1 | . . . 1 Max in Single Turn 1 | . . . 1 Machines Repaired . | . . . . Machines Dismantled . | . . . . Machines Sabotaged . | . . . . Overloaded Fab Kills . | . . . . Hacking | -11 -10 -9 -9 --------- Run | Yrd Mat Mat Min Machines Accessed 1 | . . 1 . Terminals 1 | . . 1 . Fabricators . | . . . . Repair Stations . | . . . . Recycling Units . | . . . . Scanalyzers . | . . . . Garrison Access . | . . . . Total Hacks 3 | . . 3 . Successful 1 | . . 1 . Failed 2 | . . 2 . Catastrophic . | . . . . Database Lockouts . | . . . . Manual . | . . . . Terminals 3 | . . 3 . Fabricators . | . . . . Repair Stations . | . . . . Recycling Units . | . . . . Scanalyzers . | . . . . Garrison Access . | . . . . Terminal Hacks 1 | . . 1 . Zone Layout 1 | . . 1 . Fabricator Hacks . | . . . . Repair Station Hacks . | . . . . Recycling Unit Hacks . | . . . . Scanalyzer . | . . . . Garrison Access Hacks . | . . . . Unauthorized Hacks . | . . . . Terminals . | . . . . Fabricators . | . . . . Repair Stations . | . . . . Recycling Units . | . . . . Scanalyzers . | . . . . Garrison Access . | . . . . Data Cores Recovered . | . . . . Used . | . . . . Hacking Detections 1 | . . 1 . Full Trace Events . | . . . . Feedback Events . | . . . . Feedback Blocked . | . . . . Robot Schematics Acquired . | . . . . Robots Built . | . . . . Authchips . | . . . . Time . | . . . . Total Robot Build Rating . | . . . . Part Schematics Acquired . | . . . . Parts Built . | . . . . Authchips . | . . . . Time . | . . . . Total Part Build Rating . | . . . . Part Studies Acquired . | . . . . Parts Repaired . | . . . . Time . | . . . . Parts Recycled . | . . . . Recycled Matter . | . . . . Retrieved Matter . | . . . . Retrieved Components . | . . . . Parts Scanalyzed . | . . . . Part Schematics Acquired . | . . . . Parts Damaged . | . . . . Bothacking | -11 -10 -9 -9 ------------ Run | Yrd Mat Mat Min Used RIF Installer . | . . . . Robots Hacked . | . . . . Non-combat . | . . . . Combat . | . . . . Robot Hacks Applied . | . . . . Relay Couplers Released . | . . . . Fabnet Peak Effective % . | . . . . Robots Rewired . | . . . . Allies Hacked . | . . . . Hacks Repelled . | . . . . Allies | -11 -10 -9 -9 -------- Run | Yrd Mat Mat Min Total Allies . | . . . . Largest Group . | . . . . Highest-Rated Group . | . . . . Highest-Rated Ally . | . . . . Total Orders . | . . . . Ally Attacks . | . . . . Total Damage . | . . . . Kills . | . . . . Allies Corrupted . | . . . . Allies Melted . | . . . . Intel | -11 -10 -9 -9 ------- Run | Yrd Mat Mat Min Active Infowar (turns) 1219 | . . 629 590 Structural 1219 | . . 629 590 Robot Analysis Total . | . . . . Derelict Logs Recovered 1 | . . . 1 Drone Launches . | . . . . Drone Recoveries . | . . . . Exploration | -11 -10 -9 -9 ------------- Run | Yrd Mat Mat Min Turns Passed 1649 | 57 248 711 633 Spaces Moved 556 | 43 110 240 163 Core 25 | 25 . . . Treads 531 | 18 110 240 163 Legs . | . . . . Wheels . | . . . . Hover . | . . . . Flight . | . . . . Fastest Speed 50 | 50 160 160 240 Average Speed 247 | 96 160 266 317 Slowest Speed 320 | 160 160 320 320 Overloaded Moves . | . . . . Propulsion Burnouts . | . . . . Robots Hopped . | . . . . Potential Cave-ins . | . . . . Cave-ins Triggered . | . . . . Exploration Rate (%) 26 | 3 31 23 49 Regions Visited 3 Branch Regions 1 Pre-discovered Areas . | . . . . Known Exits Taken . | . . . . Unknown Exits Taken 3 | 1 1 1 . Scrap Searched . | . . . . Spaces Dug . | . . . . Terrain Destroyed 40 | . 1 . 39 Melee . | . . . . Projectile . | . . . . AOE 40 | . 1 . 39 Terrain Rammed . | . . . . Walls Destroyed . | . . . . Machines Disabled . | . . . . Actions | -11 -10 -9 -9 --------- Run | Yrd Mat Mat Min Total 750 | 58 146 302 244 Wait 87 | 5 . 25 57 Move 553 | 42 109 239 163 Hop . | . . . . Pick Up 36 | 5 10 21 . Fast Attach 3 | 2 1 . . Attach 11 | 4 2 4 1 Detach . | . . . . Swap 13 | . 4 5 4 Drop 5 | . 2 3 . Fire 42 | . 18 5 19 Melee . | . . . . Ram . | . . . . Kick . | . . . . Crush . | . . . . Escape Stasis . | . . . . Rewire . | . . . . Trap . | . . . . Miscellaneous . | . . . . Route ------- -11/Scrapyard -10/Materials (discovered 2 exits: *Mat / [*Min]) -9/Materials -9/Mines (discovered 1 exit: [*Mat]) History --------- Turn | Location | Event 18 | -11/Scrapyard | Discovered new exit (range 16) 58 | -11/Scrapyard | Entered Materials 168 | -10/Materials | Discovered new exit (range 15) 282 | -10/Materials | Discovered new exit (range 14) 306 | -10/Materials | Entered another Materials area 306 | -9/Materials | Evolved 2 slots: Utility x2 347 | -9/Materials | Build established: Mutant 982 | -9/Materials | Discovered new exit (range 10) 1017 | -9/Materials | Entered Mines 1225 | -9/Mines | Learned 2 Materials zone layouts 1592 | -9/Mines | Discovered new exit (range 9) 1593 | -9/Mines | Assembled infested the area 1648 | -9/Mines | Destroyed 11 combat bots 1650 | -9/Mines | Self-destructed Last Messages --------------- T-07 Excavator destroyed. as-57240 destroyed. Destroyed Asb. Hover Unit. as-21416 destroyed. U-05 Engineer lays Concrete. U-05 Engineer builds a Wall. as-98877 destroyed. as-16054 destroyed. as-98145 destroyed. U-05 Engineer lays Concrete. The unstable cave ceiling collapses. U-05 Engineer lays Concrete. Grenade Launcher destroyed. U-05 Engineer lays Concrete. Lgt. Nuclear Core destroyed. System corrupted by crushing effect (+3). U-05 Engineer lays Concrete. as-88572 destroyed. U-05 Engineer lays Concrete. The unstable cave ceiling collapses. Map ----- +----------------------------------------------------+ | ??????????### #####??????????? | | ??????????## #####?????????? | | ?????######## #####???????? | | ????########## ######?????? | | ????### ##### #####????? | | ????## ##### ###????? | | ????## ## ###???? | | ????## !!! ## ###???? | | ????## !!! ## ##???? | | ????### !!! # ##???? | | ?????### !!!! ### #####?? | | ??????### ##### #####?? | | ??????###### ###### ##?? | | ???????###### ####?## ##?? | | ??????????############### ##?? | | ???????????#### ######## #### | | ???????????### ####### #### | | ????????##### # ## | | ????????##### # | | ????????## ### # # | | ???####### #### # # | | ??######## ### ##### ## | | ??### ####### ### | | ??## ###### ### | | ??## ######??## ##? | | ??## @ ######??## ? | | ??###aaa##?????? | | ??####a%###??? | | ???### % # ## #### | | ????# a ## #### # | | ???? ### ???## ## | | ???? a a ??## ## | | ???? ??## ### | | ??? < ####? #### | | ??? =% ##???? ######? | | ?? =###????? ######?? | | ?? %%% ###??????? ###?????? | | ? ###????????? ##??????? | | ? ##??????????????????? | | ### ##???????????????????? | | ?## ## ####???????????????????? | | ??#### ####???????????????????? | | ??###? ???????????????????????? | | ??????????????????????????????? | | ??????????????????????????????? | | ??????????????????????????????? | | ??????????????????????????????? | | ??????????????????????????????? | | ??????????????????????????????? | | ??????????????????????????????? | +----------------------------------------------------+ Best States ------------- Heat Dissipation 42 Energy Generation 14 Energy Capacity 250 Matter Stores 227 Matter Capacity 300 Sight Range 16 Terrain Scan Density 10 Utility Shielding 33 Evasion (%) 50 Recoil Reduction 2 Offensive Hacking 10 Item Schematics ----------------- None Robot Schematics ------------------ None Fabricated ------------ Nothing Repaired ---------- Nothing Studied --------- None Alien Tech Used ----------------- None Achievements -------------- None Challenges ------------ None Game ------ Seed ComponentTractorMace Manual? 0 Play Time 00:13:52 Cumulative 7.6 hours Start 2026.01.01 @ 00:11:24 End 2026.01.01 @ 00:28:15 Sessions 1 Manual Loads 0 Difficulty Rogue Special Mode None Game No. 30 Rogue 30 Adventurer 0 Explorer 0 Win Type - Total 0 Types 0/0/0/0/0/0/0/0/0/0 Lore% 7 Gallery% 9 Achievement% 9 Wizard Run 0 Options --------- Layout 1 ASCII 0 Keyboard 0 Movement Mouse Keybinds 0 Fullscreen 1 Font 24/Smallcaps Map View 50x35 Zoom Use 0% Tactical HUD 0 Map Filters NONE Filters NONE Steam 1 RUN: 24d12b0d-481f-404d-891b-fdd4080cffe9